[Event "Early-Titled-Tuesday-Blitz-June-18-2024"]
[Site "Chess.com"]
[Date "2024.06.18"]
[Round "1"]
[White "lucasran"]
[Black "Arteler"]
[Result "1-0"]
[WhiteElo "2593"]
[BlackElo "2212"]
[TimeControl "180+1"]
[EndTime "8:07:54 PDT"]
[Termination "lucasran won by checkmate"]

1. d4 {[%clk 0:03:00]} 1... Nf6 {[%clk 0:02:59.8]} 2. Bg5 {[%clk 0:02:59.6]}
2... g6 {[%clk 0:02:59.2]} 3. Bxf6 {[%clk 0:02:59.5]} 3... exf6 {[%clk
0:03:00.1]} 4. e3 {[%clk 0:02:59]} 4... Bg7 {[%clk 0:03:01]} 5. g3 {[%clk
0:02:57.2]} 5... d6 {[%clk 0:03:01.9]} 6. Bg2 {[%clk 0:02:54.6]} 6... O-O {[%clk
0:03:02.4]} 7. Ne2 {[%clk 0:02:54.9]} 7... c6 {[%clk 0:03:00.1]} 8. O-O {[%clk
0:02:55]} 8... Re8 {[%clk 0:03:00.3]} 9. c4 {[%clk 0:02:52.7]} 9... Nd7 {[%clk
0:03:00]} 10. Nbc3 {[%clk 0:02:52.5]} 10... f5 {[%clk 0:03:00.5]} 11. b4 {[%clk
0:02:46.2]} 11... Nf6 {[%clk 0:02:56.5]} 12. b5 {[%clk 0:02:33]} 12... Bd7
{[%clk 0:02:51.7]} 13. Rb1 {[%clk 0:02:29.6]} 13... Rb8 {[%clk 0:02:47.1]} 14.
Qa4 {[%clk 0:02:11.1]} 14... Qc7 {[%clk 0:01:34]} 15. Rfc1 {[%clk 0:02:11.2]}
15... Ne4 {[%clk 0:01:29.9]} 16. Nxe4 {[%clk 0:01:58.3]} 16... fxe4 {[%clk
0:01:30.8]} 17. Nc3 {[%clk 0:01:58.9]} 17... f5 {[%clk 0:01:23.3]} 18. Bf1
{[%clk 0:01:27.2]} 18... h5 {[%clk 0:00:53.6]} 19. h4 {[%clk 0:01:27]} 19... a6
{[%clk 0:00:26.6]} 20. bxa6 {[%clk 0:01:19.8]} 20... bxa6 {[%clk 0:00:27.5]} 21.
Qxa6 {[%clk 0:01:16.5]} 21... Ra8 {[%clk 0:00:23.8]} 22. Qb7 {[%clk 0:01:16.8]}
22... Qd8 {[%clk 0:00:16.5]} 23. Qb2 {[%clk 0:01:14.1]} 23... Qe7 {[%clk
0:00:16.9]} 24. Ne2 {[%clk 0:00:57]} 24... g5 {[%clk 0:00:17.3]} 25. hxg5 {[%clk
0:00:56.9]} 25... Qxg5 {[%clk 0:00:18.2]} 26. Bg2 {[%clk 0:00:57.7]} 26... h4
{[%clk 0:00:18.1]} 27. gxh4 {[%clk 0:00:58.1]} 27... Qxh4 {[%clk 0:00:18.8]} 28.
Qb7 {[%clk 0:00:39.1]} 28... Rad8 {[%clk 0:00:17.8]} 29. Qa7 {[%clk 0:00:38.5]}
29... Re6 {[%clk 0:00:15.6]} 30. Rb7 {[%clk 0:00:36.8]} 30... Rg6 {[%clk
0:00:04.2]} 31. Nf4 {[%clk 0:00:37.1]} 31... Rxg2+ {[%clk 0:00:02.1]} 32. Nxg2
{[%clk 0:00:38]} 32... Qf6 {[%clk 0:00:01.9]} 33. Rxd7 {[%clk 0:00:38.2]} 33...
Re8 {[%clk 0:00:02.2]} 34. Rxg7+ {[%clk 0:00:37.6]} 34... Qxg7 {[%clk
0:00:03.1]} 35. Qxg7+ {[%clk 0:00:38.1]} 35... Kxg7 {[%clk 0:00:04]} 36. a4
{[%clk 0:00:37.9]} 36... Ra8 {[%clk 0:00:04.9]} 37. Ra1 {[%clk 0:00:38.3]} 37...
Rb8 {[%clk 0:00:05.3]} 38. a5 {[%clk 0:00:38.7]} 38... Rb4 {[%clk 0:00:05.6]}
39. a6 {[%clk 0:00:38.4]} 39... Rb8 {[%clk 0:00:06.3]} 40. a7 {[%clk 0:00:39]}
40... Ra8 {[%clk 0:00:06.9]} 41. Nf4 {[%clk 0:00:39.7]} 41... Kf6 {[%clk
0:00:07.1]} 42. Ra6 {[%clk 0:00:39.8]} 42... Kg5 {[%clk 0:00:06.4]} 43. Kg2
{[%clk 0:00:39.2]} 43... d5 {[%clk 0:00:05.9]} 44. cxd5 {[%clk 0:00:39.3]} 44...
c5 {[%clk 0:00:06.7]} 45. dxc5 {[%clk 0:00:38.3]} 45... Rg8 {[%clk 0:00:05.9]}
46. Rg6+ {[%clk 0:00:37.8]} 46... Kh4 {[%clk 0:00:06.8]} 47. Kf1 {[%clk
0:00:35.7]} 47... Rb8 {[%clk 0:00:03.6]} 48. Rg4+ {[%clk 0:00:33.7]} 48... Kxg4
{[%clk 0:00:01.7]} 49. axb8=Q {[%clk 0:00:34.6]} 49... Kf3 {[%clk 0:00:02.5]}
50. Qb1 {[%clk 0:00:31.2]} 50... Kg4 {[%clk 0:00:02.9]} 51. Qd1+ {[%clk
0:00:31.4]} 51... Kg5 {[%clk 0:00:02.5]} 52. Qh5+ {[%clk 0:00:31]} 52... Kf6
{[%clk 0:00:02.8]} 53. Qg6+ {[%clk 0:00:31.5]} 53... Ke5 {[%clk 0:00:03.7]} 54.
Qe6# {[%clk 0:00:31.9]} 1-0

[Event "Early-Titled-Tuesday-Blitz-June-18-2024"]
[Site "Chess.com"]
[Date "2024.06.18"]
[Round "1"]
[White "djano"]
[Black "kyuotbi"]
[Result "1-0"]
[WhiteElo "2635"]
[BlackElo "2305"]
[TimeControl "180+1"]
[EndTime "8:07:55 PDT"]
[Termination "djano won on time"]

1. e4 {[%clk 0:03:00.9]} 1... c5 {[%clk 0:02:59.2]} 2. Nc3 {[%clk 0:02:59.7]}
2... a6 {[%clk 0:02:58.6]} 3. g3 {[%clk 0:02:59.2]} 3... b5 {[%clk 0:02:58.1]}
4. Bg2 {[%clk 0:02:59.5]} 4... Bb7 {[%clk 0:02:56.7]} 5. Nh3 {[%clk 0:02:59.8]}
5... e6 {[%clk 0:02:56.9]} 6. O-O {[%clk 0:02:57.5]} 6... Nc6 {[%clk 0:02:54.3]}
7. f4 {[%clk 0:02:56.1]} 7... Nge7 {[%clk 0:02:52]} 8. f5 {[%clk 0:02:53.8]}
8... Qc7 {[%clk 0:02:42.4]} 9. fxe6 {[%clk 0:02:39.1]} 9... dxe6 {[%clk
0:02:41.3]} 10. Ng5 {[%clk 0:02:36.6]} 10... Ne5 {[%clk 0:02:32]} 11. d3 {[%clk
0:02:05.9]} 11... h6 {[%clk 0:02:27.1]} 12. Nh3 {[%clk 0:02:05.4]} 12... N7c6
{[%clk 0:02:20.4]} 13. Nf4 {[%clk 0:02:00.3]} 13... O-O-O {[%clk 0:02:17.2]} 14.
Be3 {[%clk 0:01:55.8]} 14... Nc4 {[%clk 0:02:00]} 15. Bc1 {[%clk 0:01:55.4]}
15... Qb6 {[%clk 0:01:35]} 16. Kh1 {[%clk 0:01:55.1]} 16... N4e5 {[%clk
0:01:31]} 17. Be3 {[%clk 0:01:52.1]} 17... Qc7 {[%clk 0:01:22.4]} 18. a4 {[%clk
0:01:48.4]} 18... b4 {[%clk 0:01:21.5]} 19. Nb1 {[%clk 0:01:48.2]} 19... h5
{[%clk 0:01:18]} 20. Nd2 {[%clk 0:01:45.8]} 20... g6 {[%clk 0:01:14.5]} 21. Qe2
{[%clk 0:01:41]} 21... Ng4 {[%clk 0:01:07.6]} 22. Bg1 {[%clk 0:01:38.9]} 22...
Bg7 {[%clk 0:00:58.3]} 23. Nc4 {[%clk 0:01:39.1]} 23... Bd4 {[%clk 0:00:49.6]}
24. c3 {[%clk 0:01:33.3]} 24... Bxg1 {[%clk 0:00:48.3]} 25. Kxg1 {[%clk
0:01:34.2]} 25... Nce5 {[%clk 0:00:36.2]} 26. Nxe5 {[%clk 0:01:30.4]} 26... Nxe5
{[%clk 0:00:36.1]} 27. cxb4 {[%clk 0:01:30.4]} 27... Kb8 {[%clk 0:00:33.6]} 28.
Rac1 {[%clk 0:01:28]} 28... Qb6 {[%clk 0:00:29.2]} 29. bxc5 {[%clk 0:01:25.8]}
29... Qb4 {[%clk 0:00:29.3]} 30. Rfd1 {[%clk 0:01:15.3]} 30... h4 {[%clk
0:00:27.7]} 31. g4 {[%clk 0:01:12.5]} 31... h3 {[%clk 0:00:26.2]} 32. Bf1 {[%clk
0:01:06.7]} 32... Qd4+ {[%clk 0:00:25.9]} 33. Qf2 {[%clk 0:01:07.1]} 33... Qxa4
{[%clk 0:00:24.7]} 34. d4 {[%clk 0:00:58.3]} 34... Nxg4 {[%clk 0:00:24.2]} 35.
Qg3 {[%clk 0:00:58.7]} 35... f5 {[%clk 0:00:20.4]} 36. Nd5+ {[%clk 0:00:54.6]}
36... Ka7 {[%clk 0:00:17.6]} 37. Nb6 {[%clk 0:00:53.5]} 37... Qc6 {[%clk
0:00:16.8]} 38. d5 {[%clk 0:00:52.8]} 38... exd5 {[%clk 0:00:16.8]} 39. exd5
{[%clk 0:00:53.4]} 39... Qf6 {[%clk 0:00:14.6]} 40. c6 {[%clk 0:00:50.8]} 40...
Kxb6 {[%clk 0:00:12]} 41. cxb7 {[%clk 0:00:51.3]} 41... Qd6 {[%clk 0:00:10.4]}
42. Rc6+ {[%clk 0:00:47.7]} 42... Qxc6 {[%clk 0:00:10.5]} 43. dxc6 {[%clk
0:00:48.6]} 43... Rxd1 {[%clk 0:00:10.8]} 44. b8=Q+ {[%clk 0:00:49.1]} 44...
Rxb8 {[%clk 0:00:10.1]} 45. Qxb8+ {[%clk 0:00:50]} 45... Kxc6 {[%clk 0:00:10.7]}
46. Qc8+ {[%clk 0:00:48.7]} 46... Kb6 {[%clk 0:00:10.4]} 47. Qxa6+ {[%clk
0:00:47.9]} 47... Kc7 {[%clk 0:00:09.6]} 48. Qa7+ {[%clk 0:00:47.3]} 48... Kd6
{[%clk 0:00:09]} 49. Qb8+ {[%clk 0:00:47.4]} 49... Kd7 {[%clk 0:00:06.6]} 50.
Qb5+ {[%clk 0:00:45.3]} 50... Ke7 {[%clk 0:00:06.7]} 51. Qb4+ {[%clk 0:00:45.3]}
51... Kf6 {[%clk 0:00:05.2]} 52. Qc3+ {[%clk 0:00:44.8]} 52... Kg5 {[%clk
0:00:04.6]} 53. Qxh3 {[%clk 0:00:42.7]} 53... Rd2 {[%clk 0:00:02.1]} 54. Qg3
{[%clk 0:00:32.8]} 54... f4 {[%clk 0:00:01.9]} 55. h4+ {[%clk 0:00:30.9]} 1-0

[Event "Early-Titled-Tuesday-Blitz-June-18-2024"]
[Site "Chess.com"]
[Date "2024.06.18"]
[Round "1"]
[White "GoltsevDmitry2000"]
[Black "EdenDzung06"]
[Result "0-1"]
[WhiteElo "2703"]
[BlackElo "2416"]
[TimeControl "180+1"]
[EndTime "8:07:59 PDT"]
[Termination "EdenDzung06 won by checkmate"]

1. e4 {[%clk 0:02:59.8]} 1... c6 {[%clk 0:03:00.1]} 2. e5 {[%clk 0:02:57.5]}
2... d5 {[%clk 0:02:59.9]} 3. exd6 {[%clk 0:02:58.4]} 3... exd6 {[%clk
0:02:59.8]} 4. d4 {[%clk 0:02:58.6]} 4... Nf6 {[%clk 0:03:00.2]} 5. Nf3 {[%clk
0:02:59.1]} 5... d5 {[%clk 0:03:00.7]} 6. c4 {[%clk 0:02:59.4]} 6... Be6 {[%clk
0:02:59.7]} 7. cxd5 {[%clk 0:02:59.1]} 7... Bxd5 {[%clk 0:02:58.8]} 8. Nc3
{[%clk 0:02:59.2]} 8... Be7 {[%clk 0:02:59.2]} 9. Bd3 {[%clk 0:02:55.7]} 9...
O-O {[%clk 0:02:59.2]} 10. O-O {[%clk 0:02:54.4]} 10... Nbd7 {[%clk 0:02:59.7]}
11. Bg5 {[%clk 0:02:53.5]} 11... h6 {[%clk 0:02:59.2]} 12. Bh4 {[%clk
0:02:53.2]} 12... Rc8 {[%clk 0:02:52.9]} 13. Re1 {[%clk 0:02:52.2]} 13... Re8
{[%clk 0:02:50.3]} 14. Ne5 {[%clk 0:02:46.6]} 14... Be6 {[%clk 0:02:45.4]} 15.
Qf3 {[%clk 0:02:40.1]} 15... Nd5 {[%clk 0:02:41.9]} 16. Bg3 {[%clk 0:02:32.8]}
16... Bf6 {[%clk 0:02:33.6]} 17. Qe4 {[%clk 0:02:20.3]} 17... Nf8 {[%clk
0:02:24.7]} 18. Rad1 {[%clk 0:02:02]} 18... Qb6 {[%clk 0:02:14.9]} 19. Re2
{[%clk 0:01:42.3]} 19... Rcd8 {[%clk 0:02:10.6]} 20. a3 {[%clk 0:01:27.8]} 20...
a5 {[%clk 0:02:08.3]} 21. Bh4 {[%clk 0:01:09.3]} 21... Bxh4 {[%clk 0:01:49.7]}
22. Qxh4 {[%clk 0:01:10.2]} 22... Nf6 {[%clk 0:01:47.4]} 23. h3 {[%clk
0:01:05.3]} 23... Kh8 {[%clk 0:01:35.1]} 24. Bb1 {[%clk 0:00:59]} 24... c5
{[%clk 0:01:25.1]} 25. d5 {[%clk 0:00:35.7]} 25... Nxd5 {[%clk 0:01:22.4]} 26.
Nxd5 {[%clk 0:00:30.5]} 26... Bxd5 {[%clk 0:01:13.4]} 27. Rde1 {[%clk
0:00:26.9]} 27... Be6 {[%clk 0:00:45.7]} 28. Bc2 {[%clk 0:00:14.5]} 28... Kg8
{[%clk 0:00:36.2]} 29. Ba4 {[%clk 0:00:14]} 29... Nd7 {[%clk 0:00:20.4]} 30.
Nxd7 {[%clk 0:00:12.6]} 30... Bxd7 {[%clk 0:00:15.2]} 31. Rxe8+ {[%clk
0:00:12.4]} 31... Rxe8 {[%clk 0:00:14.6]} 32. Rxe8+ {[%clk 0:00:13.3]} 32...
Bxe8 {[%clk 0:00:14.9]} 33. Bxe8 {[%clk 0:00:14.2]} 33... Qxb2 {[%clk
0:00:14.8]} 34. Qa4 {[%clk 0:00:04.1]} 34... Qc1+ {[%clk 0:00:11.6]} 35. Kh2
{[%clk 0:00:04.1]} 35... c4 {[%clk 0:00:11.9]} 36. g3 {[%clk 0:00:03.3]} 36...
Qd2 {[%clk 0:00:10.3]} 37. Kg1 {[%clk 0:00:02.7]} 37... c3 {[%clk 0:00:10.5]}
38. Qc4 {[%clk 0:00:01.7]} 38... Qe1+ {[%clk 0:00:09]} 39. Kg2 {[%clk
0:00:01.8]} 39... Qxe8 {[%clk 0:00:09.6]} 40. Qxc3 {[%clk 0:00:02.4]} 40... Qb5
{[%clk 0:00:09.2]} 41. Qc6 {[%clk 0:00:03]} 41... Qxc6+ {[%clk 0:00:08.8]} 42.
Kh2 {[%clk 0:00:01.4]} 42... Qa4 {[%clk 0:00:09.2]} 43. h4 {[%clk 0:00:01.4]}
43... Qxa3 {[%clk 0:00:09.7]} 44. h5 {[%clk 0:00:02.3]} 44... Qb3 {[%clk
0:00:10.4]} 45. Kh3 {[%clk 0:00:02.9]} 45... a4 {[%clk 0:00:11.3]} 46. f3 {[%clk
0:00:02.9]} 46... a3 {[%clk 0:00:12.2]} 47. f4 {[%clk 0:00:03.7]} 47... a2
{[%clk 0:00:12.6]} 48. f5 {[%clk 0:00:04.6]} 48... a1=Q {[%clk 0:00:12.3]} 49.
f6 {[%clk 0:00:05.5]} 49... Qh1+ {[%clk 0:00:12.4]} 50. Kg4 {[%clk 0:00:05.7]}
50... Qbf3# {[%clk 0:00:12.6]} 0-1

[Event "Early-Titled-Tuesday-Blitz-June-18-2024"]
[Site "Chess.com"]
[Date "2024.06.18"]
[Round "1"]
[White "gafkens"]
[Black "Cmorales2001"]
[Result "1/2-1/2"]
[WhiteElo "2628"]
[BlackElo "2317"]
[TimeControl "180+1"]
[EndTime "8:08:04 PDT"]
[Termination "Game drawn by repetition"]

1. e4 {[%clk 0:03:00.9]} 1... c6 {[%clk 0:02:58.9]} 2. d4 {[%clk 0:02:59.7]}
2... d5 {[%clk 0:02:59.8]} 3. e5 {[%clk 0:02:59.5]} 3... Bf5 {[%clk 0:02:59.2]}
4. Nd2 {[%clk 0:02:59.4]} 4... e6 {[%clk 0:02:59.3]} 5. Nb3 {[%clk 0:02:59.1]}
5... c5 {[%clk 0:02:56.4]} 6. dxc5 {[%clk 0:02:52.9]} 6... Bxc5 {[%clk 0:02:54]}
7. Bb5+ {[%clk 0:02:43.5]} 7... Nc6 {[%clk 0:02:49.3]} 8. Bxc6+ {[%clk
0:02:31.4]} 8... bxc6 {[%clk 0:02:48.5]} 9. Nxc5 {[%clk 0:02:30.4]} 9... Qa5+
{[%clk 0:02:46.8]} 10. c3 {[%clk 0:02:29.8]} 10... Qxc5 {[%clk 0:02:46.5]} 11.
Be3 {[%clk 0:02:25.2]} 11... Qb5 {[%clk 0:02:43]} 12. Qb3 {[%clk 0:02:18.1]}
12... Ne7 {[%clk 0:02:38.8]} 13. Nf3 {[%clk 0:02:13.1]} 13... Qa6 {[%clk
0:02:24]} 14. Bc5 {[%clk 0:02:08.8]} 14... Bg4 {[%clk 0:02:08.6]} 15. Bxe7
{[%clk 0:01:27.7]} 15... Bxf3 {[%clk 0:02:05.2]} 16. gxf3 {[%clk 0:01:21.9]}
16... Kxe7 {[%clk 0:02:04]} 17. Qb4+ {[%clk 0:01:22.4]} 17... Ke8 {[%clk
0:02:04.1]} 18. Rg1 {[%clk 0:01:21.5]} 18... g6 {[%clk 0:01:59.9]} 19. f4 {[%clk
0:01:14.4]} 19... Qb6 {[%clk 0:01:59]} 20. a3 {[%clk 0:01:00.2]} 20... c5 {[%clk
0:01:55.9]} 21. Qa4+ {[%clk 0:01:00.5]} 21... Ke7 {[%clk 0:01:55.7]} 22. b4
{[%clk 0:00:53.3]} 22... Rhc8 {[%clk 0:01:42.8]} 23. Rg3 {[%clk 0:00:52]} 23...
c4 {[%clk 0:01:36.5]} 24. Rd1 {[%clk 0:00:48.6]} 24... a5 {[%clk 0:01:34]} 25.
b5 {[%clk 0:00:47.5]} 25... Rc5 {[%clk 0:01:30.6]} 26. Qc2 {[%clk 0:00:40.5]}
26... Rxb5 {[%clk 0:01:28.2]} 27. Qe2 {[%clk 0:00:36.9]} 27... Rb8 {[%clk
0:01:18]} 28. Rh3 {[%clk 0:00:34.5]} 28... h5 {[%clk 0:01:16.1]} 29. f5 {[%clk
0:00:31.9]} 29... exf5 {[%clk 0:01:15.6]} 30. e6 {[%clk 0:00:27.9]} 30... fxe6
{[%clk 0:01:12.5]} 31. Re3 {[%clk 0:00:25.3]} 31... Kf6 {[%clk 0:01:01.3]} 32.
Kf1 {[%clk 0:00:24.1]} 32... Rd8 {[%clk 0:00:52.7]} 33. Re1 {[%clk 0:00:22.1]}
33... Rd6 {[%clk 0:00:49.2]} 34. Qf3 {[%clk 0:00:22]} 34... Rb1 {[%clk
0:00:45.7]} 35. Qf4 {[%clk 0:00:20.5]} 35... Rxe1+ {[%clk 0:00:44.9]} 36. Rxe1
{[%clk 0:00:21.4]} 36... d4 {[%clk 0:00:38.2]} 37. Qe5+ {[%clk 0:00:19]} 37...
Kf7 {[%clk 0:00:38.1]} 38. cxd4 {[%clk 0:00:19.2]} 38... Qxd4 {[%clk 0:00:36]}
39. Qxa5 {[%clk 0:00:19.8]} 39... Qd3+ {[%clk 0:00:33.1]} 40. Kg1 {[%clk
0:00:19.6]} 40... Qd2 {[%clk 0:00:28.3]} 41. Qc7+ {[%clk 0:00:19.4]} 41... Rd7
{[%clk 0:00:27.3]} 42. Qe5 {[%clk 0:00:20]} 42... Qd5 {[%clk 0:00:23.9]} 43. Qe3
{[%clk 0:00:20.1]} 43... e5 {[%clk 0:00:21.7]} 44. h4 {[%clk 0:00:19.5]} 44...
Qd4 {[%clk 0:00:20.5]} 45. Qh6 {[%clk 0:00:18.8]} 45... Qg4+ {[%clk 0:00:20.2]}
46. Kf1 {[%clk 0:00:19.5]} 46... Rd1 {[%clk 0:00:20.1]} 47. Qh7+ {[%clk
0:00:18.6]} 47... Ke6 {[%clk 0:00:16]} 48. Qg8+ {[%clk 0:00:19]} 48... Kf6
{[%clk 0:00:13.7]} 49. Qf8+ {[%clk 0:00:19.1]} 49... Ke6 {[%clk 0:00:14.3]} 50.
Qe8+ {[%clk 0:00:19.3]} 50... Kf6 {[%clk 0:00:14.6]} 51. Qf8+ {[%clk 0:00:19.6]}
51... Ke6 {[%clk 0:00:15.2]} 52. Qe8+ {[%clk 0:00:17.4]} 52... Kf6 {[%clk
0:00:14.4]} 53. Qxe5+ {[%clk 0:00:18]} 53... Kf7 {[%clk 0:00:14.4]} 54. Qe7+
{[%clk 0:00:17.8]} 54... Kg8 {[%clk 0:00:14.6]} 55. Qe8+ {[%clk 0:00:17.8]}
55... Kg7 {[%clk 0:00:15]} 56. Qe7+ {[%clk 0:00:17.7]} 56... Kg8 {[%clk
0:00:15.5]} 57. Qe6+ {[%clk 0:00:18]} 57... Kg7 {[%clk 0:00:15.7]} 58. Qe5+
{[%clk 0:00:17.7]} 58... Kg8 {[%clk 0:00:13.4]} 59. Qe6+ {[%clk 0:00:10.9]}
59... Kg7 {[%clk 0:00:13.6]} 60. Qe7+ {[%clk 0:00:10.5]} 60... Kg8 {[%clk
0:00:13.6]} 1/2-1/2

[Event "Early-Titled-Tuesday-Blitz-June-18-2024"]
[Site "Chess.com"]
[Date "2024.06.18"]
[Round "1"]
[White "DenLaz"]
[Black "AGW2016"]
[Result "1-0"]
[WhiteElo "3102"]
[BlackElo "2542"]
[TimeControl "180+1"]
[EndTime "8:08:05 PDT"]
[Termination "DenLaz won by resignation"]

1. d4 {[%clk 0:03:00.9]} 1... Nf6 {[%clk 0:02:59.6]} 2. c4 {[%clk 0:03:01.5]}
2... g6 {[%clk 0:02:59]} 3. g3 {[%clk 0:03:01.5]} 3... Bg7 {[%clk 0:02:57.8]} 4.
Bg2 {[%clk 0:03:01.5]} 4... O-O {[%clk 0:02:58.5]} 5. Nc3 {[%clk 0:03:01.9]}
5... d6 {[%clk 0:02:59]} 6. Nf3 {[%clk 0:03:02.5]} 6... Nc6 {[%clk 0:02:59.3]}
7. O-O {[%clk 0:03:01.5]} 7... e5 {[%clk 0:02:59.6]} 8. d5 {[%clk 0:03:02.2]}
8... Nb8 {[%clk 0:02:56.6]} 9. e4 {[%clk 0:03:01.5]} 9... Nbd7 {[%clk
0:02:43.6]} 10. Ne1 {[%clk 0:02:54.9]} 10... Nc5 {[%clk 0:02:42]} 11. b4 {[%clk
0:02:53.7]} 11... Ncd7 {[%clk 0:02:42.4]} 12. a3 {[%clk 0:02:51.7]} 12... Ne8
{[%clk 0:02:39.2]} 13. Nd3 {[%clk 0:02:50.3]} 13... f5 {[%clk 0:02:37.5]} 14. c5
{[%clk 0:02:50.1]} 14... a5 {[%clk 0:02:33.1]} 15. Rb1 {[%clk 0:02:49.6]} 15...
axb4 {[%clk 0:02:32.3]} 16. axb4 {[%clk 0:02:50.5]} 16... f4 {[%clk 0:02:02.2]}
17. c6 {[%clk 0:02:28.1]} 17... bxc6 {[%clk 0:01:58.9]} 18. dxc6 {[%clk
0:02:29]} 18... Nb6 {[%clk 0:01:59.6]} 19. b5 {[%clk 0:02:26.6]} 19... Be6
{[%clk 0:01:56.3]} 20. Nd5 {[%clk 0:02:21.3]} 20... Bxd5 {[%clk 0:01:44.4]} 21.
exd5 {[%clk 0:02:22.2]} 21... Nf6 {[%clk 0:01:44.5]} 22. gxf4 {[%clk 0:02:18.5]}
22... e4 {[%clk 0:01:38]} 23. Nb4 {[%clk 0:02:18.5]} 23... Nh5 {[%clk
0:01:38.2]} 24. Qg4 {[%clk 0:02:19.2]} 24... Nf6 {[%clk 0:01:15]} 25. Qe2 {[%clk
0:02:07.7]} 25... Kh8 {[%clk 0:01:05.8]} 26. Bxe4 {[%clk 0:01:54.2]} 26... Re8
{[%clk 0:00:56.8]} 27. f3 {[%clk 0:01:53.8]} 27... Nbxd5 {[%clk 0:00:52.8]} 28.
Nxd5 {[%clk 0:01:51]} 28... Nxd5 {[%clk 0:00:51.9]} 29. Bd2 {[%clk 0:01:51.1]}
29... Nc3 {[%clk 0:00:49.4]} 30. Bxc3 {[%clk 0:01:51.4]} 30... Bxc3 {[%clk
0:00:50.3]} 31. Qd3 {[%clk 0:01:52.1]} 31... Qf6 {[%clk 0:00:49.8]} 32. Kh1
{[%clk 0:01:19]} 32... Ba5 {[%clk 0:00:37.2]} 33. f5 {[%clk 0:01:17]} 33... g5
{[%clk 0:00:36.9]} 34. Ra1 {[%clk 0:01:12]} 34... Bb6 {[%clk 0:00:33.7]} 35.
Rxa8 {[%clk 0:01:12.2]} 35... Rxa8 {[%clk 0:00:34.6]} 36. Qd2 {[%clk 0:01:10.8]}
36... Ra1 {[%clk 0:00:26.3]} 37. Bb1 {[%clk 0:01:05.8]} 37... Ra3 {[%clk
0:00:19.9]} 38. Qd5 {[%clk 0:00:59.5]} 38... Kg7 {[%clk 0:00:18.8]} 39. Ba2
{[%clk 0:00:54.6]} 39... Kh6 {[%clk 0:00:16.6]} 40. Bc4 {[%clk 0:00:48.4]} 40...
Re3 {[%clk 0:00:12.3]} 41. Bd3 {[%clk 0:00:38.8]} 41... Qc3 {[%clk 0:00:07.9]}
42. Bc4 {[%clk 0:00:23.2]} 42... Qf6 {[%clk 0:00:06.8]} 43. Qf7 {[%clk
0:00:14.6]} 43... Qxf7 {[%clk 0:00:04.5]} 44. Bxf7 {[%clk 0:00:15.5]} 44... Kg7
{[%clk 0:00:05.4]} 45. Be6 {[%clk 0:00:15.6]} 45... Kf6 {[%clk 0:00:06.2]} 46.
Kg2 {[%clk 0:00:14]} 46... Re5 {[%clk 0:00:05.5]} 47. Kg3 {[%clk 0:00:10.6]}
47... Rxb5 {[%clk 0:00:04.8]} 48. h4 {[%clk 0:00:11.3]} 48... h6 {[%clk
0:00:04.9]} 49. hxg5+ {[%clk 0:00:11.4]} 49... hxg5 {[%clk 0:00:05.8]} 50. Rh1
{[%clk 0:00:12.1]} 50... Ke5 {[%clk 0:00:03.6]} 51. Rh6 {[%clk 0:00:09.2]} 51...
Rc5 {[%clk 0:00:04.3]} 52. Bd7 {[%clk 0:00:07.5]} 52... d5 {[%clk 0:00:04.5]}
53. f6 {[%clk 0:00:07.7]} 53... Rc1 {[%clk 0:00:03.9]} 54. f7 {[%clk 0:00:07.7]}
54... Bc5 {[%clk 0:00:04.6]} 55. Re6+ {[%clk 0:00:07.5]} 55... Kd4 {[%clk
0:00:04.8]} 56. Re8 {[%clk 0:00:07.9]} 56... Rg1+ {[%clk 0:00:04.8]} 57. Kh2
{[%clk 0:00:08.4]} 57... Rf1 {[%clk 0:00:05.1]} 58. Kg2 {[%clk 0:00:09]} 58...
Re1 {[%clk 0:00:05.3]} 59. Rxe1 {[%clk 0:00:08.7]} 1-0